Cogmind - Beta 11 X7 @@@ ROGUE MODE // 2021.11.22 @ 22:19:58 Player: thingamajigger Result: Destroyed self with Grenade Launcher Performance ------------- Evolutions (0) 0 Regions Visited (2) 400 Robots Destroyed (14) 70 Value Destroyed (259) 259 Prototype IDs (0) 0 Alien Tech Used (0) 0 Bonus (0) 0 TOTAL SCORE: 729 Bonus ------- None Cogmind --------- Core Integrity 0/250 Matter 91/300 Energy 140/140 System Corruption 0% Temperature Cool (0) Movement Hovering (146) Ox1 Location -10/Mines Parts ------- > --- POWER (1) -------- Light Deuterium Engine > --- PROPULSION (2) --- Combat Airjet Combat Airjet > --- UTILITY (2) ------ Large Storage Unit > --- WEAPON (2) ------- Light Assault Rifle Grenade Launcher > --- INVENTORY (15) --- Shield Generator Small Laser Light Assault Rifle Light Assault Rifle Light Assault Rifle Rocket Launcher Peak State ------------ > --- POWER ------------ Light Deuterium Engine > --- PROPULSION ------- Combat Airjet Combat Airjet > --- UTILITY ---------- Large Storage Unit Improved Light Armor Plating > --- WEAPON ----------- Small Laser Light Assault Rifle > --- INVENTORY -------- Shield Generator Light Assault Rifle Light Assault Rifle Light Assault Rifle Grenade Launcher [Rating: 19] Favorites ----------- Power Light Ion Engine Engine Light Ion Engine Propulsion Light Treads Treads Light Treads Hover Unit Combat Airjet Utility Large Storage Unit Storage Large Storage Unit Protection Improved Light Armor Plating Weapon Light Assault Rifle Energy Gun Small Laser Ballistic Gun Light Assault Rifle Launcher Grenade Launcher Build | -11 -10 -10 ------- Run | Scr Mat Min Slots Evolved . | . . . Power . | . . . Propulsion . | . . . Utility . | . . . Weapon . | . . . Parts Attached 21 | 7 5 9 Power 3 | 1 1 1 Engine 3 | 1 1 1 Core . | . . . Reactor . | . . . Propulsion 4 | 2 . 2 Treads 2 | 2 . . Leg . | . . . Wheel . | . . . Hover 2 | . . 2 Flight . | . . . Utility 4 | 1 1 2 Device . | . . . Storage 3 | 1 1 1 Processor . | . . . Hackware . | . . . Protection 1 | . . 1 Artifact . | . . . Weapon 10 | 3 3 4 Energy Gun 1 | . . 1 Energy Cannon . | . . . Ballistic Gun 6 | 3 2 1 Ballistic Cannon . | . . . Launcher 3 | . 1 2 Special Weapon . | . . . Impact Weapon . | . . . Slashing Weapon . | . . . Piercing Weapon . | . . . Special Melee Weapon . | . . . Unidentified Prototypes . | . . . Parts Lost 8 | . 2 6 Power 2 | . 1 1 Propulsion 2 | . . 2 Utility 1 | . . 1 Weapon 3 | . 1 2 Highest Loss Streak 4 | . 2 4 Average Slot Usage (%) 87 | . 84 90 Engine 13 | . 13 13 Treads 20 | . 28 10 Hover 6 | . . 15 Storage 13 | . 14 13 Protection 3 | . . 8 Energy Gun 2 | . . 5 Ballistic Gun 22 | . 27 14 Launcher 3 | . . 7 Naked Turns . | . . . Heaviest Build 32 | 11 25 32 Greatest Support 40 | 40 40 40 Greatest Overweight (x) 2 | . . 2 Average Overweight (x) . | . . . Largest Inventory Capacity 15 | 8 15 15 Average Capacity 11 | 6 10 14 Most Carried 6 | 1 6 6 Average Carried 3 | . 1 5 Final Capacity 15 | 8 15 15 Final Carried 6 | 1 6 6 Class Distribution -------------------- 74% | Mutant 25% | Scavenger-Mutant Dominant Class ---------------- Mutant | -10/Materials Scavenger-Mutant | -10/Mines Resources | -11 -10 -10 ----------- Run | Scr Mat Min Matter Collected 493 | 139 123 231 Remotely . | . . . Salvage Created 331 | . 162 169 Parts 21 | . 14 7 Haulers Intercepted . | . . . Recyclers Shooed . | . . . Parts Field Recycled . | . . . Retrieved Matter . | . . . Parts Self-Destructed . | . . . Prevented . | . . . Kills | -11 -10 -10 ------- Run | Scr Mat Min Combat Hostiles Destroyed 21 | . 10 11 Guns 10 | . 8 2 AOE 11 | . 2 9 Classes Destroyed 5 | . 2 3 Worker 1 | . . 1 Swarmer 9 | . 9 . Grunt 3 | . 1 2 Demolisher 1 | . . 1 Assembled 8 | . . 8 Best Kill Streak 5 | . 3 5 Combat Bots Only 5 | . 3 5 Max Kills in Single Turn 3 | . 1 3 Gunslinging . | . . . Exploded 3 | . 1 3 Melee . | . . . Uniques/NPCs Destroyed . | . . . Combat | -11 -10 -10 -------- Run | Scr Mat Min Damage Taken 1291 | . 435 856 Core 252 | . 56 196 Absorbed by Shields . | . . . Core Remaining (%) 100 | 100 . . Volleys Fired 67 | . 38 29 Largest 2 | . 2 2 Hottest 60 | . 40 60 Shots Fired 115 | . 74 41 Gun 96 | . 72 24 Cannon . | . . . Launcher 19 | . 2 17 Special . | . . . Kinetic 92 | . 72 20 Thermal 4 | . . 4 Explosive 19 | . 2 17 Electromagnetic . | . . . Robot Hit Streak 8 | . 7 8 Robot Miss Streak 5 | . 5 2 Penetration Max . | . . . Secondary Targets 2 | . . 2 Max Gunslinging Chain 1 | . . 1 Shots Hit Robots 65 | . 42 23 Core Hits 46 | . 14 32 Critical Kills . | . . . Critical Parts Destroyed . | . . . Critical Strikes . | . . . Melee Attacks . | . . . Impact . | . . . Slashing . | . . . Piercing . | . . . Sneak Attacks . | . . . Combat Hostiles . | . . . Follow-up Attacks . | . . . Damage Inflicted 1264 | . 519 745 Guns 565 | . 390 175 Cannons . | . . . Explosions 699 | . 129 570 Melee . | . . . Ramming . | . . . Kinetic 520 | . 390 130 Thermal 45 | . . 45 Explosive 699 | . 129 570 Electromagnetic . | . . . Impact . | . . . Slashing . | . . . Piercing . | . . . Highest Corruption . | . . . Average Corruption . | . . . Corruption Purged . | . . . Overload Shots . | . . . Overflow Damage 13 | . . 13 Projectiles . | . . . Explosions 13 | . . 13 Melee . | . . . Knockbacks . | . . . Impact . | . . . Kinetic . | . . . Secondary . | . . . Self-Inflicted Damage 186 | . . 186 Shots 7 | . . 7 Rammed . | . . . Targets Rammed . | . . . Kicked . | . . . Crushed . | . . . Highest Temperature 26 | . 6 26 Average Temperature 10 | . 6 12 Received Heat Transfer 129 | . 24 105 Siege Activations . | . . . Robots Corrupted . | . . . Combat Hostiles . | . . . Parts Fried . | . . . Impact Corruptions . | . . . Robots Melted . | . . . Combat Hostiles . | . . . Parts Melted . | . . . Heat Transferred 100 | . . 100 Parts Sabotaged . | . . . Parts Stolen . | . . . Parts Stripped . | . . . Power Chain Reactions . | . . . Missiles Intercepted . | . . . Alert | -11 -10 -10 ------- Run | Scr Mat Min Peak Influence 230 | . 230 82 Initial 17 | . . 17 Average 84 | . 109 66 Maximum Alert Level 1 | . 1 . Low Security (%) 83 | 100 68 100 Level 1 16 | . 31 . Level 2 . | . . . Level 3 . | . . . Level 4 . | . . . Level 5 . | . . . High Security . | . . . Max Security . | . . . Squads Dispatched 1 | . 1 . Investigation . | . . . Extermination . | . . . Reinforcement 1 | . 1 . Assault . | . . . Garrison . | . . . Intercept . | . . . Construction Impeded . | . . . Haulers Reinforced . | . . . Active Scanning Responses . | . . . Cargo Convoy Interrupts . | . . . Stealth | -11 -10 -10 --------- Run | Scr Mat Min Distress Signals . | . . . Communications Jammed . | . . . Distress Signals . | . . . Times Spotted 26 | . 14 12 Peak Tracking Total 5 | . 3 5 Tactical Retreats . | . . . Traps | -11 -10 -10 ------- Run | Scr Mat Min Traps Triggered . | . . . Indirectly . | . . . Trap Hack Attempts . | . . . Triggered . | . . . Disarmed . | . . . Reprogrammed . | . . . Reused . | . . . Traps Extracted . | . . . Installed . | . . . Triggered . | . . . Machines | -11 -10 -10 ---------- Run | Scr Mat Min Machines Disabled . | . . . Max in Single Turn . | . . . Machines Sabotaged . | . . . Garrisons Compromised . | . . . Overloaded Fab Kills . | . . . Fab Network Shutdowns . | . . . Hacking | -11 -10 -10 --------- Run | Scr Mat Min Machines Accessed 1 | . 1 . Terminals 1 | . 1 . Fabricators . | . . . Repair Stations . | . . . Recycling Units . | . . . Scanalyzers . | . . . Garrison Access . | . . . Total Hacks 2 | . 2 . Successful 2 | . 2 . Failed . | . . . Catastrophic . | . . . Database Lockouts . | . . . Manual 3 | . 3 . Terminals 2 | . 2 . Fabricators . | . . . Repair Stations . | . . . Recycling Units . | . . . Scanalyzers . | . . . Garrison Access . | . . . Terminal Hacks 1 | . 1 . Terminal Index 1 | . 1 . Fabricator Hacks . | . . . Repair Station Hacks . | . . . Recycling Unit Hacks . | . . . Scanalyzer . | . . . Garrison Access Hacks . | . . . Unauthorized Hacks 1 | . 1 . Terminals 1 | . 1 . Botnet 1 | . 1 . Fabricators . | . . . Repair Stations . | . . . Recycling Units . | . . . Scanalyzers . | . . . Garrison Access . | . . . Data Cores Recovered . | . . . Used . | . . . Hacking Detections 1 | . 1 . Full Trace Events . | . . . Feedback Events . | . . . Feedback Blocked . | . . . Robot Schematics Acquired . | . . . Robots Built . | . . . Matter . | . . . Time . | . . . Total Robot Build Rating . | . . . Part Schematics Acquired . | . . . Parts Built . | . . . Matter . | . . . Time . | . . . Total Part Build Rating . | . . . Parts Repaired . | . . . Time . | . . . Parts Recycled . | . . . Recycled Matter . | . . . Retrieved Matter . | . . . Retrieved Components . | . . . Parts Scanalyzed . | . . . Part Schematics Acquired . | . . . Parts Damaged . | . . . Bothacking | -11 -10 -10 ------------ Run | Scr Mat Min Used RIF Installer . | . . . Robots Hacked . | . . . Non-combat . | . . . Combat . | . . . Robot Hacks Applied . | . . . Relay Couplers Released . | . . . Robots Rewired . | . . . Allies Hacked . | . . . Hacks Repelled . | . . . Allies | -11 -10 -10 -------- Run | Scr Mat Min Total Allies . | . . . Largest Group . | . . . Highest-Rated Group . | . . . Highest-Rated Ally . | . . . Total Orders . | . . . Ally Attacks . | . . . Total Damage . | . . . Kills . | . . . Allies Corrupted . | . . . Allies Melted . | . . . Intel | -11 -10 -10 ------- Run | Scr Mat Min Robot Analysis Total . | . . . Derelict Logs Recovered . | . . . Drone Launches . | . . . Drone Recoveries . | . . . Exploration | -11 -10 -10 ------------- Run | Scr Mat Min Turns Passed 1030 | 71 552 407 Spaces Moved 527 | 40 270 217 Core 7 | 3 . 4 Treads 382 | 37 270 75 Legs . | . . . Wheels . | . . . Hover 138 | . . 138 Flight . | . . . Fastest Speed 50 | 50 160 50 Average Speed 155 | 151 160 150 Slowest Speed 220 | 160 160 220 Overloaded Moves . | . . . Propulsion Burnouts . | . . . Robots Hopped . | . . . Cave-ins Triggered . | . . . Exploration Rate (%) 33 | 3 52 46 Regions Visited 2 Branch Regions 1 Pre-discovered Areas . | . . . Known Exits Taken . | . . . Unknown Exits Taken 2 | 1 1 . Scrap Searched . | . . . Spaces Dug 28 | . . 28 Terrain Destroyed 103 | . 11 92 Melee . | . . . Projectile . | . . . AOE 103 | . 11 92 Terrain Rammed . | . . . Walls Destroyed . | . . . Machines Disabled . | . . . Actions | -11 -10 -10 --------- Run | Scr Mat Min Total 631 | 47 324 260 Wait 7 | . 5 2 Move 525 | 39 269 217 Hop . | . . . Pick Up 9 | 1 6 2 Fast Attach 13 | 6 2 5 Attach 3 | . 1 2 Detach . | . . . Swap 5 | 1 2 2 Drop 2 | . 1 1 Fire 67 | . 38 29 Melee . | . . . Ram . | . . . Kick . | . . . Crush . | . . . Escape Stasis . | . . . Rewire . | . . . Trap . | . . . Miscellaneous . | . . . Route ------- -11/Scrapyard -10/Materials (discovered 3 exits: [*Mat] / [*Min x2]) -10/Mines (discovered 1 exit: [*Mat]) History --------- Turn | Location | Event 6 | -11/Scrapyard | Discovered new exit (range 14) 72 | -11/Scrapyard | Entered Materials 300 | -10/Materials | Build established: Mutant 312 | -10/Materials | Discovered new exit (range 16) 471 | -10/Materials | Discovered new exit (range 6) 551 | -10/Materials | Discovered new exit (range 14) 624 | -10/Materials | Entered Mines 689 | -10/Mines | Discovered new exit (range 10) 693 | -10/Mines | Assembled infested the area 775 | -10/Mines | Core integrity fell below 50% 789 | -10/Mines | Received a Rocket Launcher from a helpful Derelict 792 | -10/Mines | Core integrity fell below 20% 803 | -10/Mines | Lost 4 parts (1p2n1w) 1031 | -10/Mines | Destroyed self with Grenade Launcher Last Messages --------------- 00964_ The unstable cave ceiling collapses. 00964_ Acquired 19 matter. 00978_ K-01 Serf collects debris. 00979_ The unstable cave ceiling collapses. 00980_ Acquired 59 matter. 00988_ R-06 Scavenger collects Com. Wheel. 00990_ R-06 Scavenger collects Lgt. Ion Engine. 00993_ K-01 Serf collects debris. 00994_ R-06 Scavenger collects Sml. Storage Unit. 00995_ Acquired 25 matter. 00997_ K-01 Serf collects debris. 00997_ R-06 Scavenger collects Wheel. 00998_ Acquired 47 matter. 01001_ Acquired Rocket Launcher. 01017_ as-72169 destroyed. 01027_ Imp. Light Armor Plating destroyed. 01027_ Destroyed Imp. Light Armor Plating. 01031_ Destroyed Asb. Blade. 01031_ Destroyed Asb. Hover Unit. 01031_ as-96193 destroyed. Map ----- +----------------------------------------------------+ | ## ##?????????######????# | | * ## #????????????????????##### | | ### ##????????????????????????## | | #?# ! # ###?????????????????????????# | | ###?#### * # #?????????????????????????? | | # ##???# # =## ##?????????????????????????? | | ####????## #=*# # #??????????????????????????? | | #####????????# #= ### #??????????????????????????? | | ????????????## # # ###??????????????????????????? | | ????????????# # #???????????????????????????? | | ????????????# # ##???????????????????????????? | | ????????????# ## = ##????????????????????????????? | | ????????????# # %=####??????????????????????????? | | ????????????# r # ##?????????????????????????? | | ????????????#### = #?????????????????????????? | | ?????????????# ! ###???????????????????????? | | ?????????????# # # = # ##??????????????????????? | | ?????????????# ## # # #??????????????????????? | | ?????????????# ## ###????????????????????? | | ??????????##### ## #????????????????????? | | ?????????## #????????????????????? | | ?????????# #####?????????????????? | | ?????? #?????????????????? | | ????? ## #?????????????????? | | ????? ## % #?????????????????? | | ????? * # @ #?????????????????? | | ??????!= ## ##?????????????????? | | ??????*%! ### ## | #??????????????????? | | ???????##### #??# ## ! ##??????????????????? | | ???????????# #???# ?# #???????????????????? | | ???????????# ????#??# #???????????????????? | | ?????????? ???????### ???????????????????? | | ????????? ??????????# ??????????????????? | | ?????????? ????????????? ?????????????????? | | ????????????????????????# ????????????????? | | ????????????????????????? ##???????????????? | | ?????????????????????????# #????????????????? | | ?????????????????????????? ????????????????? | | ?????????????????????????? #????????????????? | | ??????????????????????????# ???????????????????? | | ???????????????????????????#?????????????????????? | | ?????????????????????????????????????????????????? | | ?????????????????????????????????????????????????? | | ?????????????????????????????????????????????????? | | ?????????????????????????????????????????????????? | | ?????????????????????????????????????????????????? | | ?????????????????????????????????????????????????? | | ?????????????????????????????????????????????????? | | ?????????????????????????????????????????????????? | | ?????????????????????????????????????????????????? | +----------------------------------------------------+ Best States ------------- Heat Dissipation 25 Energy Generation 14 Energy Capacity 140 Matter Stores 179 Matter Capacity 300 Sight Range 16 Terrain Scan Density 10 Armor Coverage 150 Evasion (%) 45 Recoil Reduction 2 Item Schematics ----------------- None Robot Schematics ------------------ None Fabricated ------------ Nothing Alien Tech Used ----------------- None Achievements -------------- None Challenges ------------ None Game ------ Seed DisposableMagneticBox Manual? 0 Play Time 00:06:25 Cumulative 115.8 hours Start 2021.11.22 @ 04:14:02 End 2021.11.22 @ 22:19:58 Sessions 2 Manual Loads 0 Difficulty Rogue Special Mode None Game No. 198 Rogue 181 Adventurer 4 Explorer 13 Win Type - Total 8 Types 6/0/0/2/0/0/0/0/0 Lore% 63 Gallery% 81 Achievement% 67 Wizard Run 0 Options --------- ASCII 0 Keyboard 1 Movement Numpad Keybinds 0 Fullscreen 1 Font 18/SmallcapsGlow Map View 76x50 Tactical HUD 1 Map Filters NONE Filters NONE Steam 1 RUN: 0f589e51-4707-4059-9539-cf6e1745b38c